bitfinex/quotes_ETHUSD_20251021
["timestamp","ask_amount","ask_price","bid_price","bid_amount"]
[1761067851422,5.35,4014.2,4014.1,0.002]
[1761067851840,8.44753639,4014.2,4014.1,0.002]
[1761067852682,7.94065639,4014.2,4014.1,0.002]
[1761067852959,5.95638,4014.2,4014.1,0.002]
[1761067853146,5.85688,4014.2,4014.1,0.002]
[1761067854663,0.1499,4014.9,4014.1,0.232]
[1761067854845,3.617,4014.8,4014.4,2.49097892]
[1761067855046,3.617,4014.8,4014.1,0.232]
[1761067855047,1.728,4014.7,4014.1,0.232]
[1761067855264,4.21890342,4014.7,4014.1,0.002]
[1761067855636,0.50688,4014.3,4014.1,0.002]
[1761067855967,1.728,4014.7,4014.1,0.002]
[1761067855968,4.12288,4014.2,4014.1,0.002]
[1761067856172,3.616,4014.2,4014.1,2.49319459]
[1761067856369,3.616,4014.2,4014.1,0.002]
[1761067856668,5.344,4014.2,4014.1,0.002]
[1761067856869,3.616,4014.2,4014.1,0.002]
[1761067857069,3.616,4014.2,4014.1,2.49321845]
[1761067857472,3.616,4014.2,4014.1,2.94331845]
[1761067858543,3.616,4014.2,4014.1,2.49321845]
[1761067860783,3.616,4014.2,4014.1,3.17331845]
[1761067861775,3.616,4014.2,4014.1,2.72321845]
[1761067861965,3.616,4014.2,4014.1,0.002]
[1761067862567,4.12288,4014.2,4014.1,0.002]
[1761067862750,6.74142623,4014.2,4014.1,0.002]
[1761067863078,3.616,4014.2,4014.1,0.002]
[1761067863669,4.12288,4014.2,4014.1,0.002]
[1761067863881,3.616,4014.2,4014.1,0.002]
[1761067864389,3.609,4015.5,4014.9,2.49072206]
[1761067864593,3.609,4015.5,4014.9,2.94082206]
[1761067865158,0.001,4015.5,4014.9,2.96572928]
[1761067865389,0.001,4015.5,4015.4,2.49041191]
[1761067865893,0.001,4015.5,4014.1,0.002]
[1761067865894,0.50688,4015.4,4014.1,0.002]
[1761067866060,0.02638984,4015.3,4014.1,0.002]
[1761067866256,0.001,4014.3,4014.1,0.002]
[1761067866461,3.607,4014.3,4014.2,2.49115639]
[1761067866765,3.607,4014.3,4014.1,0.002]
[1761067866966,0.53326984,4014.2,4014.1,0.002]
[1761067867171,3.12492623,4014.2,4014.1,0.002]
[1761067867404,0.63376984,4014.2,4014.1,0.002]
[1761067867615,3.607,4014.3,4014.1,0.002]
[1761067868095,3.607,4014.3,4014.2,2.49115639]
[1761067868860,0.001,4014.3,4014.2,2.94125639]
[1761067870559,0.001,4014.3,4014.2,2.49115639]
[1761067870981,0.001,4014.3,4014.1,0.002]
[1761067871189,2.59165639,4014.2,4014.1,0.002]
[1761067871367,3.09853639,4014.2,4014.1,0.002]
[1761067871588,4.82653639,4014.2,4014.1,0.002]
[1761067873012,13.56311651,4014.0,4013.9,1e-08]
[1761067873212,10.69401051,4014.0,4013.9,1e-08]
[1761067873397,8.94852951,4014.0,4013.9,1e-08]
[1761067873611,9.46187532,4014.0,4013.9,1e-08]
[1761067873924,7.29234848,4014.0,4013.9,1e-08]
[1761067874085,11.66330448,4014.0,4013.9,1e-08]
[1761067874411,10.58592748,4014.0,4013.9,1e-08]
[1761067874614,2.99859504,4013.3,4011.4,2.49288365]
[1761067874835,8.32559504,4013.3,4011.3,2.4928999]
[1761067874989,8.42459504,4013.3,4011.0,0.4521]
[1761067875313,38.42459504,4013.3,4011.0,0.002]
[1761067875514,2.67008762,4012.7,4012.6,1e-08]
[1761067875728,2.67008762,4012.7,4011.0,0.002]
[1761067875729,2.99996169,4011.1,4011.0,0.002]
[1761067875884,8.32596169,4011.1,4011.0,0.002]
[1761067876080,38.42546169,4011.1,4011.0,0.002]
[1761067876330,39.06342963,4011.1,4011.0,0.002]
[1761067876878,39.33277179,4011.1,4011.0,0.002]
[1761067877391,8.82075447,4011.1,4011.0,0.002]
[1761067877596,3.0002725,4010.6,4010.5,0.002]
[1761067877902,2.676042,4010.0,4007.3,0.6801]
[1761067878083,0.50688,4009.0,4007.4,0.4501]
[1761067878429,2.23488,4008.8,4007.5,2.49532127]
[1761067878633,0.50688,4008.5,4007.4,0.4501]
[1761067878925,1.728,4008.6,4007.7,2.4951899]
[1761067879164,0.50688,4008.5,4007.4,0.4501]
[1761067879368,0.02638984,4008.4,4006.7,0.23]
[1761067879534,0.50688,4007.4,4006.3,2.49606852]
[1761067879860,0.50688,4007.4,4005.4,2.72662211]
[1761067879861,0.50688,4006.9,4005.4,0.23]
[1761067880017,3.596,4006.8,4005.7,0.4404]
[1761067880359,0.50688,4006.7,4005.7,0.4404]
[1761067880766,0.02638984,4006.6,4005.6,0.002]
[1761067881052,0.50688,4006.4,4005.6,0.002]
[1761067881257,2.49644256,4005.7,4005.6,0.002]
[1761067881439,4.10188,4005.7,4005.6,0.002]
[1761067881622,5.82988,4005.7,4005.6,0.002]
[1761067882014,0.1003,4006.3,4005.6,0.002]
[1761067882214,0.50688,4006.1,4005.6,0.002]
[1761067882449,0.50688,4005.9,4005.6,0.002]
[1761067882788,0.50688,4005.9,4005.6,2.4984464]
[1761067883094,0.50688,4005.9,4005.6,0.002]
[1761067883293,0.371,4006.0,4005.6,2.4984724]
[1761067883500,0.371,4006.0,4005.6,0.002]
[1761067883666,0.371,4006.0,4005.6,2.49849712]
[1761067883995,0.371,4006.0,4005.9,2.49631793]
[1761067884352,0.1519,4007.5,4005.9,0.453]
[1761067884559,0.2466,4007.9,4006.0,0.453]
[1761067884560,1.897,4007.4,4006.0,0.453]
[1761067885057,0.1454,4007.9,4006.0,0.453]
[1761067885278,3.554,4007.3,4006.1,4.2241933]
[1761067885479,0.50688,4007.2,4006.3,4.22406869]
[1761067885691,3.554,4007.3,4006.3,4.22406869]
[1761067885692,3.554,4007.3,4007.2,2.49550808]
[1761067886080,3.554,4007.3,4007.2,2.94850808]
[1761067886480,3.554,4007.3,4007.2,2.49550808]
[1761067886682,3.554,4007.3,4007.2,0.453]
[1761067886989,3.554,4007.3,4007.2,2.94850808]
[1761067887496,3.554,4007.3,4007.2,2.49550808]
[1761067888187,3.554,4007.3,4007.1,2.49555497]
[1761067888498,3.554,4007.3,4006.8,0.2277]
[1761067888670,3.554,4007.3,4005.6,0.455]
[1761067888671,2.40936984,4007.2,4005.6,0.455]
[1761067888884,2.49569492,4006.9,4005.6,0.455]
[1761067889208,2.49557036,4007.1,4006.1,2.49613303]
[1761067889209,0.50688,4007.1,4006.1,2.49613303]
[1761067889364,0.50688,4007.1,4005.6,0.455]
[1761067889564,0.50688,4006.9,4006.3,2.49601935]
[1761067889779,0.50688,4006.9,4005.6,0.455]
[1761067889957,3.00245504,4007.1,4005.6,0.455]
[1761067890189,0.50688,4006.8,4005.6,0.455]
[1761067890403,0.50688,4007.1,4006.2,2.49612631]
[1761067890577,0.50688,4007.1,4005.6,0.47996504]
[1761067890578,0.50688,4007.1,4005.6,0.455]
[1761067891018,0.50688,4006.9,4005.6,0.455]
[1761067891218,0.50688,4006.9,4006.4,2.49600438]
[1761067891381,0.50688,4006.9,4005.6,0.455]
[1761067891382,0.50688,4007.1,4005.6,0.455]
[1761067891729,0.50688,4006.9,4005.6,0.455]
[1761067892024,0.50688,4006.9,4006.3,2.49605838]
[1761067892229,0.50688,4006.9,4005.6,0.002]
[1761067892713,2.49586378,4006.7,4005.9,2.49626255]
[1761067893012,0.50688,4006.8,4006.2,2.4960822]
[1761067893308,0.50688,4006.8,4005.7,0.453]
[1761067893512,0.50688,4006.8,4006.3,2.49604367]
[1761067893705,0.50688,4006.8,4005.7,0.453]
[1761067894012,3.591,4007.0,4006.9,2.49569492]
[1761067894215,3.591,4007.0,4006.9,2.72339492]
[1761067894387,0.121791,4009.0,4008.0,2.49500998]
[1761067894388,0.1005,4008.7,4008.0,2.49500998]
[1761067894578,0.2788,4009.2,4007.8,2.4951201]
[1761067894779,3.589,4009.1,4007.3,1.75295445]
[1761067895080,3.589,4009.1,4007.5,22.9288103]
[1761067895295,5.317,4009.1,4009.0,2.49438762]
[1761067895616,3.589,4009.1,4009.0,2.49438762]
[1761067895977,3.588,4010.0,4009.1,2.4943254]
[1761067896175,3.588,4010.0,4009.8,2.49388004]
[1761067896382,3.588,4010.0,4008.8,0.453]
[1761067896683,3.588,4010.0,4009.2,2.49424516]
[1761067897018,3.588,4010.0,4009.5,2.49406732]
[1761067897311,3.588,4010.0,4009.8,2.49382842]
[1761067897712,3.588,4010.0,4008.8,0.453]
[1761067897713,3.588,4010.0,4008.8,2.94745422]
[1761067897888,0.02638984,4009.9,4008.8,0.453]
[1761067898093,0.53326984,4009.9,4009.3,2.49414121]
[1761067898289,0.50688,4009.9,4008.7,0.2277]
[1761067898496,0.50688,4009.9,4008.8,0.453]
[1761067898917,0.50688,4009.9,4008.4,0.7]
[1761067899114,0.50688,4009.5,4008.7,2.49454513]
[1761067899281,0.50688,4009.5,4007.9,2.72272057]
[1761067899282,0.50688,4009.8,4008.6,0.02494636]
[1761067899483,0.50688,4009.8,4008.8,0.453]
[1761067899682,0.50688,4009.8,4008.9,2.49444017]
[1761067899892,0.50688,4009.8,4008.6,2.49459628]
[1761067900097,0.50688,4009.9,4009.8,2.49388996]
[1761067900515,0.50688,4009.9,4009.7,2.49393855]
[1761067900729,3.588,4010.0,4009.8,2.49385596]
[1761067900897,5.82288,4010.0,4009.9,2.49382777]
[1761067901405,3.588,4010.0,4009.9,2.49382777]
[1761067902698,3.588,4010.0,4009.8,0.2277]
[1761067902920,3.588,4010.0,4009.8,2.72157607]
[1761067903125,0.001,4010.1,4010.0,2.49376558]
[1761067903438,0.001,4010.6,4010.5,2.49345468]
[1761067903729,0.001,4010.6,4010.5,2.94645468]
[1761067904529,0.001,4010.6,4010.5,2.49345468]
[1761067904831,0.124,4010.5,4009.9,0.453]
[1761067905135,0.124,4010.5,4009.6,0.124]
[1761067905136,3.67088,4010.4,4009.2,0.453]
[1761067905303,0.50688,4009.9,4009.2,2.49424339]
[1761067905636,4.22157943,4010.3,4009.1,0.2277]
[1761067905637,0.50688,4010.2,4009.5,2.49402195]
[1761067905942,0.50688,4010.2,4009.3,2.94717323]
[1761067905943,0.50688,4010.2,4009.3,0.453]
[1761067906144,0.50688,4010.2,4009.8,2.49386946]
[1761067906301,1.728,4010.3,4009.4,0.453]
[1761067906506,1.728,4010.3,4009.1,3.42200099]
[1761067906507,0.53326984,4010.2,4009.3,2.49418325]
[1761067906902,0.50688,4010.2,4009.1,2.72202468]
[1761067907208,0.50688,4010.2,4009.2,0.453]
[1761067907522,4.72833847,4010.5,4009.8,2.49387955]
[1761067907718,0.001,4010.6,4010.0,2.49371283]
[1761067907719,1.728,4010.3,4010.0,2.49371283]
[1761067907925,1.728,4010.3,4009.9,2.49381632]
[1761067908225,1.728,4010.3,4009.5,2.49401978]
[1761067908420,3.578,4010.4,4010.1,2.49370024]
[1761067908733,3.578,4010.4,4010.3,2.49357903]
[1761067909134,3.578,4010.4,4010.3,2.94657903]
[1761067909336,3.578,4010.4,4010.3,2.49357903]
[1761067909930,3.578,4010.4,4010.0,2.4937621]
[1761067910136,3.578,4010.4,4009.8,0.453]
[1761067910341,3.578,4010.4,4010.3,2.49357903]
[1761067910710,3.578,4010.4,4008.8,30.80467343]
[1761067910711,3.578,4010.4,4010.2,2.49363291]
[1761067910918,0.001,4010.6,4010.4,2.49349051]
[1761067911429,0.001,4010.6,4010.5,2.49345468]
[1761067911635,0.001,4010.6,4010.1,2.49364682]
[1761067911799,0.001,4010.6,4009.4,0.453]
[1761067912005,0.001,4010.6,4010.1,2.49366188]
[1761067912205,0.02738984,4010.6,4010.2,2.49362874]
[1761067912524,0.02738984,4010.6,4009.7,2.49389867]
[1761067912525,3.14577355,4010.5,4009.7,2.49389867]
[1761067912735,2.49375265,4010.1,4009.3,2.49414584]
[1761067913047,4.07988,4010.0,4009.4,2.49408427]
[1761067913246,4.07988,4010.0,4009.1,0.2277]
[1761067913454,4.07988,4010.0,4009.5,2.49403084]
[1761067913805,4.07988,4010.0,4009.6,2.49400642]
[1761067914113,4.07988,4010.0,4009.4,2.49407979]
[1761067914332,4.07988,4010.0,4009.3,2.49418508]
[1761067914500,4.07988,4010.0,4009.1,0.2277]
[1761067914851,0.50688,4009.9,4009.1,0.2277]
[1761067915151,0.50688,4009.9,4009.5,2.49402353]
[1761067915337,0.50688,4009.9,4009.3,2.49418216]
[1761067915536,0.124,4009.3,4008.8,0.0764]
[1761067915737,0.124,4009.3,4009.2,2.49421972]
[1761067916037,3.571,4009.3,4008.8,0.0764]
[1761067916243,0.50688,4009.1,4008.8,0.0764]
[1761067916404,0.02638984,4009.0,4008.8,2.57090463]
[1761067916616,0.02638984,4009.0,4008.8,0.0764]
[1761067917035,0.02638984,4009.0,4008.8,2.57090717]
[1761067917634,0.02638984,4009.0,4008.8,0.0764]
[1761067918220,4.83532984,4008.9,4008.8,0.0764]
[1761067919021,7.23150884,4008.9,4008.8,0.0764]
[1761067919222,4.729641,4008.4,4007.9,0.002]
[1761067919560,11.389832,4008.4,4007.9,0.002]
[1761067919790,8.53483998,4008.0,4007.9,1e-08]
[1761067920072,31.59553345,4008.0,4007.9,1e-08]
[1761067920277,28.50944845,4008.0,4007.9,1e-08]
[1761067920426,31.17525645,4008.0,4007.9,1e-08]
[1761067921071,37.26761,4008.0,4007.9,1e-08]
[1761067921358,35.48414345,4008.0,4007.9,1e-08]
[1761067921865,19.75816885,4008.0,4007.9,1e-08]
[1761067922041,2.23488,4007.9,4005.6,0.002]
[1761067922244,0.1548,4005.7,4005.6,0.002]
[1761067922565,1.728,4007.7,4005.7,0.4489]
[1761067922872,1.728,4007.5,4005.7,0.4489]
[1761067923083,1.728,4007.5,4005.6,0.002]
[1761067923084,6.174181,4007.2,4005.6,0.002]
[1761067923262,4.73132256,4005.7,4005.6,0.002]
[1761067923564,8.29732256,4005.7,4005.6,0.002]
[1761067923867,13.14213556,4005.7,4005.6,0.002]
[1761067924026,8.39892256,4005.7,4005.6,0.001]
[1761067924262,5.80088,4005.7,4005.6,0.001]
[1761067924484,5.80088,4005.7,4005.6,2.49750489]
[1761067924685,2.49574959,4006.9,4005.7,2.49642151]
[1761067924986,3.566,4006.8,4005.7,0.6655]
[1761067925188,2.64165401,4008.1,4005.7,0.6655]
[1761067925189,0.1533,4007.7,4006.3,2.49604974]
[1761067925357,3.59238984,4007.6,4006.3,2.49604475]
[1761067925559,3.59238984,4007.6,4005.7,0.2166]
[1761067925560,3.566,4007.6,4005.7,0.2166]
[1761067925795,1.728,4007.5,4006.0,0.4489]
[1761067925963,0.02638984,4007.4,4006.0,0.4489]
[1761067926313,1.827,4007.4,4006.5,2.49588891]
[1761067926461,2.49580369,4006.8,4006.0,2.49625476]
[1761067926669,4.07188,4006.7,4006.1,2.49618791]
[1761067926973,0.50688,4006.3,4005.6,0.001]
[1761067927284,2.23488,4006.1,4005.6,0.001]
[1761067927666,3.565,4006.2,4005.6,0.001]
[1761067927667,3.565,4006.2,4006.1,2.4961933]
[1761067927939,3.565,4006.2,4006.1,2.9450933]
[1761067928061,3.565,4006.2,4005.6,0.001]
[1761067928265,0.50688,4006.1,4005.6,0.001]
[1761067928676,0.50688,4005.7,4005.6,0.001]
[1761067928908,4.07088,4005.7,4005.6,0.001]
[1761067929409,5.79888,4005.7,4005.6,0.001]
[1761067930163,8.29532256,4005.7,4005.6,0.001]
[1761067930465,8.39582256,4005.7,4005.6,0.001]
[1761067930679,5.79888,4005.7,4005.6,0.001]
[1761067931094,5.292,4005.7,4005.6,0.001]
[1761067931299,0.1477,4007.0,4005.6,0.4499]
[1761067931473,2.49526184,4007.6,4005.6,0.4499]
[1761067931694,0.2457,4008.1,4005.6,0.4499]
[1761067931695,3.562,4007.0,4006.9,2.49569492]
[1761067931871,3.58838984,4007.0,4005.7,2.71298338]
[1761067932070,3.58838984,4007.0,4006.7,2.49581046]
[1761067932266,3.58838984,4007.0,4006.8,2.49575038]
[1761067932503,3.58838984,4007.0,4006.1,0.4489]
[1761067932710,3.562,4007.0,4006.9,2.71229492]
[1761067933210,3.562,4007.0,4006.9,2.49569492]
[1761067933670,3.562,4007.0,4006.9,2.94459492]
[1761067934405,2.49569492,4006.9,4004.8,0.002]
[1761067934605,2.49569492,4006.9,4005.2,0.002]
[1761067934606,2.49641061,4005.8,4005.2,0.002]
[1761067934791,4.06788,4005.7,4005.2,0.002]
[1761067934996,2.49579452,4006.8,4005.7,0.2166]
[1761067935171,1.728,4006.6,4005.8,2.49637505]
[1761067935369,4.22390415,4006.6,4005.9,2.49630005]
[1761067935589,4.06688,4006.7,4005.7,0.2166]
[1761067935590,0.50688,4006.5,4005.7,0.2166]
[1761067935910,0.50688,4006.6,4006.1,2.49613695]
[1761067936115,0.50688,4006.6,4005.7,2.73799647]
[1761067936406,0.50688,4006.6,4005.8,0.4489]
[1761067936613,0.53326984,4006.5,4005.7,0.2166]
[1761067936815,3.02922567,4006.5,4005.7,2.71299143]
[1761067937008,1.728,4006.4,4005.7,0.2166]
[1761067937214,3.02934895,4006.3,4005.7,0.2166]
[1761067937410,0.50688,4006.1,4005.6,2.49749225]
[1761067937613,2.23488,4005.9,4005.6,0.001]
[1761067937831,16.08068056,4005.7,4005.6,0.001]
[1761067938014,3.00357188,4005.3,4005.2,0.002]
[1761067938329,4.73157188,4005.3,4005.2,0.002]
[1761067938622,8.05156188,4005.3,4005.2,0.002]
[1761067938814,7.76765688,4005.3,4005.2,0.002]
[1761067939014,4.83057188,4005.3,4005.2,0.002]
[1761067939229,16.73643021,4005.2,4005.1,1e-08]
[1761067939445,13.22028759,4004.8,4004.7,1e-08]
[1761067939622,2.23488,4004.7,4001.9,2.71540401]
[1761067939817,1.728,4004.5,4002.0,0.4366]
[1761067940018,1.728,4004.5,4003.0,2.49808067]
[1761067940247,0.50688,4004.0,4002.0,0.4366]
[1761067940433,3.558,4004.4,4001.9,0.2166]
[1761067940434,0.1248,4002.7,4002.1,0.4366]
[1761067940630,0.1248,4002.2,4002.1,2.93528818]
[1761067941018,0.50688,4003.2,4002.1,2.93528818]
[1761067941019,0.50688,4004.2,4002.1,0.4366]
[1761067941223,2.23488,4004.0,4002.3,2.49856332]
[1761067941411,2.23488,4004.0,4002.4,0.4366]
[1761067941611,0.198,4004.9,4002.5,0.02498438]
[1761067941812,0.199,4005.6,4003.9,0.2251]
[1761067942036,0.267,4005.5,4003.9,0.2251]
[1761067942309,0.267,4005.5,4004.9,2.49688585]
[1761067942545,0.267,4005.5,4004.0,0.4366]
[1761067942719,0.1971,4006.5,4005.5,2.4965379]
[1761067942921,0.1971,4006.5,4005.4,0.2251]
[1761067942922,0.52,4006.4,4005.4,0.2251]
[1761067943244,0.52,4006.4,4006.1,2.49616724]
[1761067943433,0.50688,4006.3,4006.0,2.49624067]
[1761067943611,0.52,4006.4,4006.1,2.49618533]
[1761067944011,0.52,4006.4,4005.9,2.4963142]
[1761067944207,0.02638984,4006.3,4005.0,0.217]
[1761067944435,0.1014,4006.2,4004.6,0.217]
[1761067944646,0.1014,4006.2,4003.9,0.2251]
[1761067944647,0.50688,4006.0,4003.9,0.2251]
[1761067944955,1.026,4005.9,4004.0,2.19367502]
[1761067945117,1.026,4005.9,4004.0,0.46567502]
[1761067945460,1.026,4005.9,4004.3,1.728]
[1761067945614,1.026,4005.9,4004.2,2.49737775]
[1761067945615,0.50688,4005.8,4005.7,2.49640528]
[1761067946046,0.50688,4005.8,4004.9,4.22488704]
[1761067946217,0.50688,4005.8,4005.0,2.4968789]
[1761067946413,0.50688,4005.8,4005.7,2.49644256]
[1761067947113,1.026,4005.9,4005.7,2.49644256]
[1761067947114,1.026,4005.9,4005.8,2.49638024]
[1761067947445,0.001,4006.6,4006.5,2.49594409]
[1761067948016,0.001,4006.6,4006.5,2.93664409]
[1761067949717,0.001,4006.6,4006.5,4.66464409]
[1761067950253,0.001,4006.6,4005.5,0.217]
[1761067950481,0.001,4006.6,4005.0,0.4407]
[1761067950482,0.53426984,4006.6,4005.0,2.3857]
[1761067950683,0.50788,4006.6,4005.9,2.49629951]
[1761067950963,0.50788,4006.6,4005.1,0.4407]
[1761067951176,0.50788,4006.6,4004.8,2.49700359]
[1761067951177,2.49615449,4006.2,4004.8,2.49700359]
[1761067951331,0.50688,4005.3,4003.9,0.2251]
[1761067951536,2.23488,4005.1,4004.3,2.49725781]
[1761067951759,2.23488,4005.1,4004.0,0.4407]
[1761067951945,0.50688,4005.1,4004.1,0.0249744]
[1761067952146,0.50688,4005.1,4004.0,0.4407]
[1761067952348,0.50688,4005.1,4004.1,2.49744012]
[1761067952544,0.50688,4005.1,4005.0,2.4968789]
[1761067952764,3.552,4005.2,4005.1,2.49681655]
[1761067953071,3.552,4005.2,4005.1,2.93751655]
[1761067953272,0.1474,4006.7,4005.9,2.49629147]
[1761067953437,3.551,4005.9,4005.8,2.49638024]
[1761067953880,3.551,4005.9,4005.8,2.93708024]
[1761067954172,0.001,4007.5,4006.5,2.49594409]
[1761067954356,0.50788,4007.5,4006.5,2.93664409]
[1761067954557,0.001,4007.5,4006.5,2.93664409]
[1761067957179,0.001,4007.5,4006.5,4.66464409]
[1761067958783,0.001,4007.5,4007.4,2.71238354]
[1761067958784,1e-08,4007.5,4007.4,2.71238354]
[1761067959087,0.63375303,4009.3,4009.0,2.49438762]
[1761067959253,0.63375303,4009.5,4009.4,2.49413877]
[1761067959563,0.5347704,4009.7,4007.6,0.4407]
[1761067959892,0.50688,4009.6,4007.9,2.49507223]
[1761067960086,0.001,4010.1,4008.0,0.02495009]
[1761067960261,0.001,4010.1,4009.0,2.49438035]
[1761067960461,0.001,4010.1,4010.0,2.49376558]
[1761067960663,0.001,4010.1,4009.9,2.49382106]
[1761067960868,0.001,4010.1,4008.6,2.49463653]
[1761067961190,0.001,4010.1,4009.9,2.49377678]
[1761067961347,0.001,4010.1,4010.0,2.49376558]
[1761067961547,0.001,4010.1,4008.7,0.5647]
[1761067961806,0.124,4009.3,4009.2,2.49426319]
[1761067962487,0.50688,4010.0,4009.6,2.49396297]
[1761067962694,0.50688,4010.0,4008.3,3.546]
[1761067962695,0.50688,4010.0,4009.9,2.49382777]
[1761067962853,0.50688,4010.0,4008.8,2.4945017]
[1761067962854,0.50688,4009.8,4008.7,0.124]
[1761067963054,0.001,4010.1,4009.8,2.49383502]
[1761067963260,0.02738984,4010.1,4008.8,2.49451207]
[1761067963455,0.001,4010.1,4009.6,2.49395692]
[1761067963659,0.001,4010.1,4008.7,2.1687]
[1761067963853,0.001,4010.1,4010.0,2.49376558]
[1761067968421,0.001,4010.1,4010.0,2.93446558]
[1761067968580,0.001,4010.1,4010.0,2.49376558]
[1761067974402,0.001,4010.1,4010.0,2.96836558]
[1761067974636,1e-08,4010.2,4010.1,2.96830339]
[1761067974903,1e-08,4010.2,4010.1,2.99324042]
[1761067975112,1e-08,4010.2,4010.1,4.72124042]
[1761067975431,1e-08,4010.2,4010.1,4.69630339]
[1761067975740,1e-08,4010.2,4010.1,4.84524042]
[1761067976368,1e-08,4010.2,4010.1,4.82030339]
[1761067976746,1e-08,4010.2,4010.1,8.35530339]
[1761067977038,1e-08,4010.2,4010.1,8.35430339]
[1761067977202,1e-08,4010.2,4010.1,8.23030339]
[1761067977406,1e-08,4010.2,4010.1,4.82030339]
[1761067977607,1e-08,4010.2,4010.1,8.35430339]
[1761067978927,1e-08,4010.2,4010.1,8.35330339]
[1761067979123,1e-08,4010.2,4010.1,4.22170339]
[1761067979451,1e-08,4010.2,4010.1,7.75470339]
[1761067979660,0.39086216,4013.6,4011.7,0.2355]
[1761067979943,0.001,4014.3,4013.9,2.49134258]
[1761067980246,0.001,4014.3,4013.1,0.4746]
[1761067980448,0.02738984,4014.3,4012.8,3.7675]
[1761067980687,0.1052,4014.2,4012.4,2.49227395]
[1761067980808,0.1052,4014.2,4012.3,0.2355]
[1761067981123,2.758643,4014.0,4012.1,2.4924603]
[1761067981306,2.49136443,4013.9,4012.9,2.49194563]
[1761067981507,0.1052,4013.8,4013.0,2.49186185]
[1761067981740,0.1052,4013.8,4012.4,2.49226028]
[1761067981741,1.728,4013.6,4012.4,2.49226028]
[1761067981951,2.49165373,4013.4,4012.5,2.49215217]
[1761067982133,2.49178738,4013.2,4010.9,0.4746]
[1761067982310,2.49194092,4013.0,4010.9,4.0056]
[1761067982516,2.49202715,4012.8,4011.9,2.49253706]
[1761067982854,0.1061,4012.9,4011.1,2.49308169]
[1761067983014,2.4919533,4013.0,4012.0,2.49246106]
[1761067983343,0.02638984,4012.9,4009.8,2.49384765]
[1761067983545,2.49247671,4012.1,4010.0,0.4746]
[1761067983745,2.49258456,4011.9,4011.0,2.49312734]
[1761067983912,1.728,4011.9,4010.9,2.49320601]
[1761067984112,0.1061,4013.2,4011.8,0.2355]
[1761067984370,0.1061,4013.8,4011.9,0.4746]
[1761067984571,0.001,4014.3,4012.1,2.4924603]
[1761067984780,3.168,4014.1,4012.5,2.49217146]
[1761067985080,1.728,4014.0,4012.0,2.49252243]
[1761067985234,1.728,4014.0,4013.5,2.49153859]
[1761067985435,0.099,4013.9,4012.3,2.49227456]
[1761067985744,0.02638984,4013.8,4012.3,2.49233606]
[1761067986053,2.49142122,4013.8,4011.9,2.49258456]
[1761067986258,0.099,4013.7,4012.9,2.49192103]
[1761067986457,0.099,4013.7,4011.8,0.2355]
[1761067986643,11.237138,4013.3,4010.6,0.2355]
[1761067986833,0.099,4013.7,4009.7,0.217]
[1761067986834,1.728,4012.9,4009.7,0.217]
[1761067987034,1.728,4012.2,4009.2,22.942228]
[1761067987358,2.49317606,4011.0,4008.9,2.49444984]
[1761067987557,1.728,4010.8,4009.0,0.49954387]
[1761067987754,2.49345104,4010.6,4009.7,2.49389247]
[1761067987957,2.49345104,4010.6,4008.8,23.177728]
[1761067987958,1.728,4010.6,4008.8,23.177728]
[1761067988186,3.968,4010.8,4010.0,2.49372526]
[1761067988470,3.968,4010.8,4009.6,2.49395567]
[1761067988471,4.32038109,4010.7,4009.6,2.49395567]
[1761067988640,1.827,4010.7,4008.8,0.2355]
[1761067988841,1.85338984,4010.6,4008.8,0.2355]
[1761067989069,0.12538984,4010.6,4008.8,0.2355]
[1761067989255,4.73332909,4010.8,4008.5,2.49469876]
[1761067989256,2.49374195,4010.1,4008.5,2.49469876]
[1761067989576,0.1479,4010.0,4008.6,0.02494636]
[1761067989773,1.8754,4010.4,4008.6,0.4746]
[1761067990070,1.8754,4010.4,4009.7,2.49392929]
[1761067990257,1.8754,4010.4,4008.6,0.4746]
[1761067990258,0.1474,4010.4,4009.8,2.4938864]
[1761067990441,0.124,4009.8,4009.7,2.49393798]
[1761067990643,0.1474,4010.4,4009.7,2.49393798]
[1761067991057,0.124,4009.7,4009.6,2.49401436]
[1761067991261,0.1474,4010.4,4009.5,2.49406301]
[1761067991435,0.1474,4010.4,4009.9,2.49378575]
[1761067991949,0.124,4009.9,4009.3,0.002]
[1761067992287,0.124,4009.6,4009.3,0.002]
[1761067992575,0.0995,4010.3,4009.3,0.002]
[1761067992870,0.0995,4010.3,4009.3,2.49619378]
[1761067993060,2.49369264,4010.2,4009.3,0.002]
[1761067993370,0.0995,4010.3,4009.3,0.002]
[1761067993575,0.0995,4010.2,4009.3,0.002]
[1761067993739,0.0995,4010.2,4009.3,2.49618864]
[1761067994141,0.0995,4010.2,4009.5,2.49406831]
[1761067994459,0.0995,4010.2,4009.3,0.002]
[1761067994460,0.1474,4010.4,4009.3,0.2375]
[1761067994763,0.124,4009.4,4009.3,2.73170098]
[1761067995179,0.124,4009.4,4009.3,2.49620098]
[1761067998377,0.124,4009.4,4009.3,0.002]
[1761067998599,8.02013877,4009.4,4009.3,0.002]
[1761067998744,5.526,4009.4,4009.3,0.002]
[1761067999064,5.4258,4009.4,4009.3,0.002]
[1761067999664,5.252,4009.4,4009.3,0.002]
[1761068000385,3.524,4009.4,4009.3,0.002]
[1761068000548,3.524,4009.4,4009.3,2.49620098]
[1761068000749,3.524,4009.4,4009.3,0.002]